bitfinex/quotes_ETHUSD_20250222
["timestamp","ask_amount","ask_price","bid_price","bid_amount"]
[1740201806650,0.14414842,2684.3,2684.1,0.267]
[1740201806838,0.14414842,2684.3,2684.2,1.73472588]
[1740201810562,3.72509,2684.5,2684.2,1.73472588]
[1740201810767,3.72509,2684.5,2684.4,1.73472588]
[1740201811746,3.86923842,2684.5,2684.4,1.73472588]
[1740201822282,0.14414842,2684.5,2684.4,1.73472588]
[1740201822465,0.14414842,2684.5,2684.4,2.49642588]
[1740201822777,5.27056631,2684.7,2684.4,6.84381447]
[1740201822969,5.27056631,2684.7,2684.6,6.22136588]
[1740201823585,5.27056631,2684.7,2684.6,7.95609176]
[1740201824081,3.72399,2685.3,2684.7,3.72474]
[1740201824281,3.72399,2685.3,2685.2,1.73472588]
[1740201824475,3.72399,2685.3,2685.2,2.00072588]
[1740201824679,3.72399,2685.3,2685.2,0.266]
[1740201826974,3.86815199,2685.3,2685.2,0.266]
[1740201830265,0.14416199,2685.3,2685.2,0.266]
[1740201830678,3.86813199,2685.3,2685.2,0.266]
[1740201836292,0.14416199,2685.3,2685.2,0.266]
[1740201836657,3.86813199,2685.3,2685.2,0.266]
[1740201840389,0.14416199,2685.3,2685.2,4.4504668]
[1740201840571,0.14416199,2685.3,2685.2,5.2027668]
[1740201840894,0.38892238,2685.5,2685.4,4.47614]
[1740201841090,0.38892238,2685.5,2685.4,8.05200798]
[1740201841925,0.52866862,2685.5,2685.4,8.05200798]
[1740201842188,0.52866862,2685.5,2685.4,9.30224146]
[1740201846698,0.52866862,2685.5,2685.4,9.19203878]
[1740201847889,0.52866862,2685.5,2685.4,4.00136613]
[1740201848065,0.52866862,2685.5,2685.4,7.72520613]
[1740201856500,0.52866862,2685.5,2685.4,8.27520613]
[1740201856705,0.38892238,2685.5,2685.4,8.27520613]
[1740201857120,0.53173445,2685.5,2685.4,8.27520613]
[1740201858893,0.38892238,2685.5,2685.4,10.00803878]
[1740201859302,0.53173445,2685.5,2685.4,10.00803878]
[1740201859785,0.53173445,2685.5,2685.4,8.27520613]
[1740201862124,0.53173445,2685.5,2685.4,10.00803878]
[1740201862287,3.7231,2686.0,2685.6,3.72355]
[1740201862488,3.7231,2686.0,2685.9,1.73283265]
[1740201865294,4.11221344,2686.0,2685.9,1.73283265]
[1740201865495,4.11221344,2686.0,2685.9,2.49421306]
[1740201868750,4.11221344,2686.0,2685.9,1.73283265]
[1740201870059,3.72328,2685.8,2685.7,2.18408765]
[1740201870760,3.72328,2685.8,2685.7,2.45008765]
[1740201871843,3.86628189,2685.8,2685.7,2.45008765]
[1740201875172,0.14300189,2685.8,2685.7,2.45008765]
[1740201875478,4.11229344,2686.0,2685.7,2.45008765]
[1740201875661,4.11229344,2686.0,2685.9,1.73283265]
[1740201880212,3.72328,2685.8,2685.7,1.99883265]
[1740201880481,3.72322,2685.9,2685.7,1.99883265]
[1740201881351,0.75181344,2686.0,2685.7,1.99883265]
[1740201881582,4.11230344,2686.0,2685.7,2.72502632]
[1740201881781,4.11230344,2686.0,2685.9,1.73283265]
[1740201885585,0.38921344,2686.0,2685.9,1.73283265]
[1740201887055,0.53218819,2686.0,2685.9,1.73283265]
[1740201888684,0.52612808,2686.0,2685.9,1.73283265]
[1740201889182,0.14297475,2686.0,2685.9,2.37767628]
[1740201889573,4.08534,2686.2,2685.9,2.37767628]
[1740201889780,0.14297475,2686.0,2685.9,2.37767628]
[1740201889951,4.08534,2686.2,2685.9,2.37767628]
[1740201890157,0.14297475,2686.0,2685.9,2.37767628]
[1740201890357,3.72292,2686.1,2685.9,2.37767628]
[1740201890650,0.14297475,2686.0,2685.9,1.73283265]
[1740201903325,4.08535,2686.2,2685.9,1.73283265]
[1740201903622,0.14304253,2686.0,2685.9,1.73283265]
[1740201903788,4.08535,2686.2,2685.9,1.73283265]
[1740201903982,0.14296262,2686.0,2685.9,1.73283265]
[1740201904188,4.08535,2686.2,2685.9,2.45568428]
[1740201904513,3.72275,2686.2,2685.9,1.73283265]
[1740201904749,0.53228546,2686.1,2685.9,1.73283265]
[1740201905460,0.14296262,2686.1,2685.9,1.73283265]
[1740201905636,0.14296262,2686.1,2686.0,4.56741363]
[1740201905842,3.72223,2686.6,2686.2,3.72272]
[1740201906062,3.72223,2686.6,2686.4,1.73283265]
[1740201906267,0.14296262,2686.5,2686.4,1.73283265]
[1740201913987,0.14296262,2686.5,2686.4,2.27838791]
[1740201914159,3.86527262,2686.5,2686.4,1.73283265]
[1740201914788,3.72257,2686.4,2686.2,1.73283265]
[1740201915187,0.14298976,2686.3,2686.2,1.73283265]
[1740201915393,3.86557976,2686.3,2686.2,1.73283265]
[1740201915981,0.14298976,2686.3,2686.2,1.73283265]
[1740201916170,0.14298976,2686.3,2686.2,2.43370747]
[1740201919560,3.72234,2686.5,2686.2,2.43370747]
[1740201919761,3.72234,2686.5,2686.4,1.73283265]
[1740201921165,4.11160467,2686.5,2686.4,1.73283265]
[1740201922098,4.11160467,2686.5,2686.4,1.99883265]
[1740201922796,0.38926467,2686.5,2686.4,1.99883265]
[1740201924534,4.11157467,2686.5,2686.4,1.99883265]
[1740201926098,4.11157467,2686.5,2686.4,0.266]
[1740201929195,0.38926467,2686.5,2686.4,1.99883265]
[1740201929393,0.38926467,2686.5,2686.4,2.57098791]
[1740201929983,0.38926467,2686.5,2686.4,1.99883265]
[1740201930485,4.11157467,2686.5,2686.4,0.266]
[1740201931756,4.25533704,2686.5,2686.4,0.266]
[1740201939047,0.53302704,2686.5,2686.4,0.266]
[1740201939916,0.53302704,2686.5,2686.4,2.79373265]
[1740201940148,0.53302704,2686.5,2686.4,3.44537592]
[1740201944816,0.14376237,2686.5,2686.4,7.16782592]
[1740201945217,5.27056631,2686.8,2686.4,7.21993332]
[1740201945424,0.14476548,2686.5,2686.4,5.48710067]
[1740201945618,5.27056631,2686.8,2686.4,7.21993332]
[1740201945820,5.27056631,2686.8,2686.6,1.73283265]
[1740201946967,0.14476548,2686.7,2686.6,0.72199333]
[1740201947171,5.27056631,2686.8,2686.6,1.73283265]
[1740201947463,0.14476548,2686.7,2686.6,1.73283265]
[1740201947855,3.72177,2686.9,2686.6,1.73283265]
[1740201948057,0.14486034,2686.7,2686.6,1.73283265]
[1740201948262,9.35465631,2687.1,2686.7,4.48364]
[1740201948461,9.35465631,2687.1,2687.0,1.73283265]
[1740201948462,5.27056631,2687.1,2687.0,1.73283265]
[1740201948653,3.72135,2687.2,2687.0,1.73283265]
[1740201948849,5.27056631,2687.3,2687.0,1.73283265]
[1740201949053,8.99187631,2687.3,2687.0,1.98228592]
[1740201949576,3.72139,2687.2,2687.0,1.98228592]
[1740201949993,8.99178631,2687.3,2687.0,1.98228592]
[1740201950194,5.27056631,2687.3,2687.0,1.98228592]
[1740201950357,3.72135,2687.2,2687.0,1.98228592]
[1740201950541,5.27056631,2687.3,2687.0,1.98228592]
[1740201950742,8.99182631,2687.3,2687.0,1.98228592]
[1740201950942,5.27056631,2687.3,2687.2,2.49453265]
[1740201952678,8.99176631,2687.3,2687.2,1.73283265]
[1740201953038,3.7212,2687.3,2687.2,1.73283265]
[1740201953467,3.72134,2687.2,2687.1,0.92735757]
[1740201953671,3.72134,2687.2,2687.1,0.46422859]
[1740201955349,3.72134,2687.2,2687.1,0.266]
[1740201955881,3.72134,2687.2,2687.0,0.24945327]
[1740201956063,3.72148,2687.1,2686.8,2.52383265]
[1740201956263,3.72176,2686.9,2686.8,3.26302938]
[1740201956582,3.72176,2686.9,2686.8,2.78983265]
[1740201957458,3.72143,2687.2,2686.8,2.78983265]
[1740201957663,3.72156,2687.1,2687.0,1.73283265]
[1740201957888,3.72156,2687.1,2687.0,2.01181592]
[1740201961913,0.14662158,2687.1,2687.0,2.01181592]
[1740201962115,3.86810158,2687.1,2687.0,0.27898327]
[1740201963492,3.86810158,2687.1,2686.8,2.78983265]
[1740201964318,3.72165,2687.0,2686.8,2.78983265]
[1740201964497,3.86810158,2687.1,2686.8,2.78983265]
[1740201964665,3.7217,2687.0,2686.8,2.78983265]
[1740201964868,3.86832158,2687.0,2686.8,2.78983265]
[1740201965090,3.86832158,2687.0,2686.8,3.21434533]
[1740201965291,0.3626,2686.9,2686.4,6.846]
[1740201965475,3.72226,2686.6,2686.5,0.266]
[1740201965676,3.72226,2686.6,2686.5,1.99883265]
[1740201965875,3.86881386,2686.6,2686.5,1.99883265]
[1740201966897,0.14655386,2686.6,2686.5,1.99883265]
[1740201967210,0.14655386,2686.6,2686.5,3.0371776]
[1740201967365,3.72193,2686.8,2686.5,3.0371776]
[1740201967566,0.1461881,2686.7,2686.5,3.0371776]
[1740201967766,3.72193,2686.8,2686.5,3.0371776]
[1740201967967,0.1461881,2686.7,2686.6,1.43418345]
[1740201968270,8.99232631,2686.9,2686.6,3.1670161]
[1740201968482,3.8682181,2686.7,2686.6,3.1670161]
[1740201968687,3.72203,2686.7,2686.6,3.1670161]
[1740201968886,3.86827229,2686.7,2686.6,3.1670161]
[1740201969088,0.14624229,2686.7,2686.6,3.1670161]
[1740201969408,3.72203,2686.7,2686.6,3.1670161]
[1740201969614,3.86827229,2686.7,2686.6,1.73283265]
[1740201970809,3.72217,2686.6,2686.5,0.266]
[1740201971188,3.86841229,2686.6,2686.5,0.266]
[1740201972110,3.72231,2686.5,2686.4,6.846]
[1740201972300,3.72259,2686.3,2686.0,2.51493265]
[1740201972501,3.72259,2686.3,2686.1,0.266]
[1740201972692,3.72259,2686.3,2686.2,1.73283265]
[1740201973300,3.72231,2686.5,2686.2,1.73283265]
[1740201973687,3.72247,2686.4,2686.2,1.73283265]
[1740201976817,0.14583593,2686.3,2686.2,1.73283265]
[1740201977535,0.14583593,2686.3,2686.2,2.53953265]
[1740201977822,3.72219,2686.6,2686.2,2.99310364]
[1740201977986,0.14583593,2686.5,2686.4,1.73283265]
[1740201978188,12.71483631,2686.7,2686.4,1.73283265]
[1740201978429,0.14583593,2686.6,2686.4,1.73283265]
[1740201979293,0.14583593,2686.6,2686.4,5.45524265]
[1740201979489,0.14583593,2686.6,2686.4,2.40438401]
[1740201979822,0.14583593,2686.6,2686.4,1.73283265]
[1740201980026,3.86807593,2686.6,2686.4,1.73283265]
[1740201980821,7.59034593,2686.6,2686.4,1.73283265]
[1740201981153,3.86807593,2686.6,2686.4,1.73283265]
[1740201981289,3.72231,2686.5,2686.2,2.53953265]
[1740201981492,3.72251,2686.4,2686.2,1.73283265]
[1740201981693,3.8680614,2686.4,2686.2,1.73283265]
[1740201983412,0.1455514,2686.4,2686.2,1.73283265]
[1740201983621,3.72246,2686.4,2686.2,1.73283265]
[1740201983916,3.72285,2686.2,2686.0,2.56433265]
[1740201984110,3.72285,2686.2,2686.1,0.266]
[1740201984518,3.8684014,2686.2,2686.1,0.266]
[1740201985234,3.8684014,2686.2,2685.7,7.58508032]
[1740201985401,3.72303,2686.0,2685.8,0.266]
[1740201985600,3.72289,2686.1,2685.9,1.99883265]
[1740201985845,0.1455514,2686.0,2685.9,1.99883265]
[1740201986141,3.8685514,2686.0,2685.9,1.99883265]
[1740201986829,3.8685514,2686.0,2685.7,11.80696524]
[1740201987022,3.72328,2685.8,2685.7,9.31791297]
[1740201987210,3.86753048,2685.8,2685.7,9.58391297]
[1740201988740,3.86753048,2685.8,2685.7,7.85108032]
[1740201992253,3.86753048,2685.8,2685.7,0.73908032]
[1740201992254,9.13809679,2685.8,2685.7,0.73908032]
[1740201992417,3.7237,2685.5,2685.4,1.99883265]
[1740201992617,0.14402005,2685.5,2685.4,1.99883265]
[1740201993249,3.86772005,2685.5,2685.4,1.99883265]
[1740201993637,0.14402005,2685.5,2685.4,1.73283265]
[1740201993951,0.14402005,2685.5,2685.4,1.99883265]
[1740201994320,4.23032005,2685.5,2685.4,0.266]
[1740201995872,0.50662005,2685.5,2685.0,2.47617897]
[1740201996175,4.23032005,2685.5,2685.4,0.266]
[1740201996354,5.02571506,2685.5,2685.4,0.266]
[1740201999855,4.23032005,2685.5,2685.4,0.266]
[1740202000677,9.50088636,2685.5,2685.4,0.266]
[1740202003384,5.41458636,2685.5,2685.4,2.75903265]
[1740202003586,5.41458636,2685.5,2685.4,6.48287265]
[1740202004542,5.41458636,2685.5,2685.4,4.75004]
[1740202004747,5.41458636,2685.5,2685.4,2.2310393]
[1740202005302,5.41458636,2685.5,2685.4,1.0262]
[1740202006689,0.14402005,2685.5,2685.4,1.0262]
[1740202007067,7.44672,2685.8,2685.4,1.0262]
[1740202007263,0.13680175,2685.5,2685.4,1.0262]
[1740202007463,7.44672,2685.8,2685.4,1.0262]
[1740202007664,0.13680175,2685.5,2685.4,1.0262]
[1740202007865,7.44672,2685.8,2685.4,1.8586543]
[1740202008066,0.13680175,2685.5,2685.4,5.5824943]
[1740202008266,9.35625631,2686.0,2685.4,5.5824943]
[1740202008462,0.13680175,2685.5,2685.4,5.5824943]
[1740202008668,5.27056631,2686.0,2685.5,3.72368]
[1740202008868,5.27056631,2686.3,2685.8,3.72315]
[1740202009191,5.27056631,2686.3,2685.9,0.7602]
[1740202009500,3.72275,2686.2,2685.9,0.7602]
[1740202009795,3.72275,2686.2,2685.9,1.20856]
[1740202010205,8.99316631,2686.3,2685.9,1.20856]
[1740202010617,8.99316631,2686.3,2685.9,4.93164]
[1740202010618,5.27056631,2686.3,2685.9,4.93164]
[1740202011139,3.72228,2686.6,2686.1,3.72283]
[1740202011502,3.72231,2686.5,2686.1,0.74691613]
[1740202011710,3.72231,2686.5,2686.1,1.67220304]
[1740202013829,3.72231,2686.5,2686.1,0.92528691]
[1740202014202,3.72247,2686.4,2686.0,0.7602]
[1740202014425,7.44504,2686.4,2686.0,0.7602]
[1740202014600,3.72247,2686.4,2686.0,0.7602]
[1740202014801,7.445,2686.4,2686.0,0.7602]
[1740202015001,3.72247,2686.4,2686.0,1.6108113]
[1740202016935,5.63316631,2686.8,2686.0,0.7602]
[1740202017121,3.72217,2686.6,2686.0,0.7602]
[1740202017530,3.7228,2686.2,2686.1,0.266]
[1740202018326,4.48134301,2686.2,2686.1,0.266]
[1740202019565,3.72241,2686.5,2686.1,1.0784]
[1740202019730,3.72248,2686.4,2686.2,0.266]
[1740202019931,3.72259,2686.3,2686.2,0.266]
[1740202021944,3.86195775,2686.3,2685.9,0.8061]
[1740202022140,3.86195775,2686.3,2686.0,0.266]
[1740202022541,3.72286,2686.1,2685.8,0.75996002]
[1740202022746,3.72314,2685.9,2685.8,0.75996002]
[1740202023067,3.86249418,2685.9,2685.8,1.02596002]
[1740202023967,0.13935418,2685.9,2685.8,1.02596002]
[1740202024370,3.72307,2686.0,2685.8,1.02596002]
[1740202024574,0.13935418,2685.9,2685.8,1.02596002]
[1740202025686,3.86249418,2685.9,2685.8,0.266]
[1740202028101,3.86249418,2685.9,2685.8,0.99869061]
[1740202029909,0.13935418,2685.9,2685.8,0.99869061]
[1740202030401,3.86249418,2685.9,2685.8,0.99869061]
[1740202032399,3.72341,2685.8,2685.4,7.6551]
[1740202032605,3.72341,2685.8,2685.5,0.266]
[1740202032771,0.13885197,2685.7,2685.5,0.266]
[1740202033099,3.72341,2685.8,2685.6,0.266]
[1740202036299,3.72341,2685.8,2685.7,0.7925]
[1740202036503,5.27056631,2686.0,2685.7,4.36688299]
[1740202037003,0.13885197,2685.9,2685.7,4.36688299]
[1740202039989,0.13885197,2685.9,2685.8,4.48058]
[1740202042814,0.13891983,2685.9,2685.8,4.48058]
[1740202043113,8.99288631,2686.5,2685.8,4.48058]
[1740202043292,0.13891983,2685.9,2685.8,4.48058]
[1740202043479,8.99288631,2686.5,2685.8,4.48058]
[1740202043679,8.99288631,2686.5,2685.9,3.72313]
[1740202043680,0.13891983,2686.4,2685.9,3.72313]
[1740202043880,0.13891983,2686.4,2686.3,8.05427299]
[1740202044110,5.27056631,2687.0,2686.5,3.72224]
[1740202044310,5.27056631,2687.0,2686.7,3.72192]
[1740202045207,12.30251,2687.3,2686.7,3.72192]
[1740202045208,5.27056631,2687.2,2686.8,0.7573]
[1740202046396,7.44307,2687.1,2686.6,1.0233]
[1740202046598,7.44307,2687.1,2686.6,1.497854]
[1740202046903,3.72182,2686.9,2686.6,1.231854]
[1740202047103,3.72189,2686.8,2686.7,0.266]
[1740202047291,0.3626,2686.5,2685.4,3.72373]
[1740202047507,5.27056631,2686.4,2685.8,0.7573]
[1740202047707,5.27056631,2686.4,2685.9,7.29750299]
[1740202047907,5.27056631,2686.4,2686.0,1.1777953]
[1740202048414,5.27056631,2686.4,2686.1,0.266]
[1740202048995,4.86,2686.6,2686.3,3.72252]
[1740202048996,5.27056631,2686.6,2686.3,3.72252]
[1740202049243,5.27056631,2686.9,2686.4,3.72236]
[1740202049400,5.27056631,2686.9,2686.5,0.7573]
[1740202050442,5.27056631,2687.2,2686.7,3.72203]
[1740202050739,5.27056631,2687.2,2686.9,3.7217]
[1740202050964,5.27056631,2687.2,2687.0,0.267]
[1740202051940,0.3626,2687.6,2687.1,3.72148]
[1740202052141,3.72109,2687.4,2687.0,1.1003183]
[1740202053014,3.72121,2687.3,2687.0,1.1003183]
[1740202053544,3.72121,2687.3,2687.0,0.267]
[1740202053723,3.72135,2687.2,2687.0,0.267]
[1740202054164,0.13444126,2687.1,2687.0,0.267]
[1740202054807,3.72122,2687.3,2687.0,0.267]
[1740202055250,3.72109,2687.4,2687.0,0.267]
[1740202055451,3.72136,2687.2,2687.0,0.267]
[1740202055653,0.13444126,2687.1,2687.0,0.267]
[1740202060258,8.99184631,2687.3,2687.0,0.665885]
[1740202060760,0.13628909,2687.2,2687.0,0.665885]
[1740202060961,8.99184631,2687.3,2687.0,0.665885]
[1740202061595,0.13628909,2687.2,2687.0,0.665885]
[1740202061803,8.99184631,2687.3,2687.0,0.665885]
[1740202061969,0.13628909,2687.1,2687.0,0.665885]
[1740202062521,8.99184631,2687.3,2687.0,0.665885]
[1740202062803,0.13628909,2687.1,2687.0,0.665885]
[1740202062967,8.99184631,2687.3,2687.0,0.665885]
[1740202063168,0.13628909,2687.1,2687.0,0.267]
[1740202063664,8.99184631,2687.3,2687.0,0.267]
[1740202063870,0.13628909,2687.2,2687.0,0.267]
[1740202064404,0.88010645,2687.1,2687.0,0.267]
[1740202065812,0.88010645,2687.1,2687.0,1.0257]
[1740202067893,0.13628909,2687.1,2687.0,5.222072]
[1740202068204,5.27056631,2687.3,2687.1,3.7214]
[1740202069083,12.71233631,2687.6,2687.1,3.7214]
[1740202069570,12.71230631,2687.6,2687.1,3.7214]
[1740202069774,12.71230631,2687.6,2687.1,4.9731975]
[1740202069973,8.99143631,2687.6,2687.1,4.9731975]
[1740202071697,8.99143631,2687.6,2687.1,8.6946075]
[1740202072009,8.99143631,2687.6,2687.1,4.9732475]
[1740202072319,12.71233631,2687.6,2687.1,4.9732475]
[1740202072480,12.71233631,2687.6,2687.2,0.59989475]
[1740202072682,8.99143631,2687.6,2687.2,0.59989475]
[1740202073013,12.71230631,2687.6,2687.2,0.59989475]
[1740202073527,8.99143631,2687.6,2687.2,0.59989475]
[1740202073816,12.71232631,2687.6,2687.2,0.59989475]
[1740202074018,8.99143631,2687.6,2687.3,0.55731423]
[1740202075225,5.27056631,2687.6,2687.4,0.764]
[1740202075923,8.99136631,2687.6,2687.4,0.764]
[1740202076113,12.71228631,2687.6,2687.4,0.764]
[1740202077022,8.99136631,2687.6,2687.4,0.764]
[1740202077190,5.27056631,2687.6,2687.4,0.764]
[1740202078421,5.27056631,2687.6,2687.4,1.34586239]
[1740202080207,5.27056631,2687.9,2687.5,7.29531299]
[1740202080598,5.27056631,2687.9,2687.6,3.72077]
[1740202081327,5.26004859,2688.3,2687.8,3.57438299]
[1740202081328,5.6706149,2688.3,2687.8,3.57438299]
[1740202081525,3.72036,2688.0,2687.9,0.266]
[1740202081742,3.8570973,2688.0,2687.9,0.266]
[1740202082238,4.2196973,2688.0,2687.9,0.266]
[1740202084905,3.8569673,2688.0,2687.9,0.266]
[1740202090986,0.1367373,2688.0,2687.9,0.266]
[1740202091283,3.8569673,2688.0,2687.9,0.266]
[1740202093985,0.3626,2687.9,2687.4,0.7907]
[1740202094137,0.3626,2687.9,2687.1,0.7907]
[1740202094138,3.72093,2687.5,2687.1,0.7907]
[1740202094343,3.7212,2687.3,2687.2,0.266]
[1740202094733,3.85983824,2687.3,2687.2,0.266]
[1740202096596,0.13863824,2687.3,2687.2,0.266]
[1740202096895,5.27056631,2687.8,2687.2,0.266]
[1740202096896,3.72116,2687.4,2687.2,0.80446818]
[1740202097062,3.85926802,2687.3,2687.2,0.80446818]
[1740202097890,3.72134,2687.2,2687.1,0.7907]
[1740202098058,3.72134,2687.2,2687.1,1.0567]
[1740202098378,3.85940802,2687.2,2687.1,1.0567]
[1740202102377,0.13806802,2687.2,2687.1,1.0567]
[1740202102620,5.27056631,2687.6,2687.1,3.98748]
[1740202102778,8.99138631,2687.6,2687.2,1.63724618]
[1740202103612,5.27056631,2688.1,2687.3,4.38008299]
[1740202103816,3.72048,2687.9,2687.4,0.8057]
[1740202104031,3.72055,2687.8,2687.4,0.8057]
[1740202104233,3.72055,2687.8,2687.5,0.4380083]
[1740202104533,3.72023,2688.0,2687.5,0.4380083]
[1740202104698,8.99074631,2688.1,2687.5,0.4380083]
[1740202104898,3.72023,2688.0,2687.5,0.4380083]
[1740202105120,5.27056631,2688.1,2687.5,0.4380083]
[1740202105431,3.72053,2687.8,2687.5,0.4380083]
[1740202105727,3.72045,2687.9,2687.5,0.4380083]
[1740202106993,3.72079,2687.6,2687.5,0.4380083]
[1740202107198,3.72093,2687.5,2687.4,0.8057]
[1740202107732,3.72093,2687.5,2687.2,0.8057]
[1740202107896,3.72108,2687.4,2687.3,0.267]
[1740202108807,3.72081,2687.6,2687.3,0.267]
[1740202111734,3.72071,2687.7,2687.3,0.267]
[1740202112129,0.13852966,2687.6,2687.3,0.267]
[1740202112330,0.13852966,2687.6,2687.3,0.746415]
[1740202116342,0.13852966,2687.6,2687.4,0.819]
[1740202116650,3.72059,2687.8,2687.4,0.819]
[1740202116837,0.13781389,2687.5,2687.4,0.819]
[1740202117137,3.72059,2687.8,2687.4,0.819]
[1740202117320,0.13781389,2687.5,2687.4,0.819]
[1740202117645,0.137651,2687.5,2687.4,0.819]
[1740202117854,3.72071,2687.7,2687.4,0.819]
[1740202118021,0.137651,2687.5,2687.4,0.819]
[1740202118223,3.72071,2687.7,2687.4,0.819]
[1740202118434,0.137651,2687.5,2687.4,0.819]
[1740202118643,3.72071,2687.7,2687.4,0.819]
[1740202118843,0.137651,2687.5,2687.4,0.819]
[1740202119060,3.72071,2687.7,2687.4,0.819]
[1740202119264,0.137651,2687.5,2687.4,0.819]
[1740202119473,3.72071,2687.7,2687.4,0.819]
[1740202119962,0.137651,2687.6,2687.4,0.819]
[1740202124966,3.72093,2687.5,2687.4,0.819]
[1740202125180,3.72118,2687.4,2687.2,0.8173]
[1740202125666,3.7212,2687.3,2687.2,0.8173]
[1740202125976,3.858851,2687.3,2687.2,1.0833]
[1740202127573,4.221451,2687.3,2687.0,0.75359876]
[1740202127753,3.72198,2686.8,2686.5,0.266]
[1740202127948,0.13733875,2686.7,2686.5,1.0833]
[1740202128161,3.72179,2686.9,2686.5,1.99449157]
[1740202128563,0.13733875,2686.8,2686.5,1.99449157]
[1740202128953,0.13733875,2686.8,2686.5,1.72849157]
[1740202129164,8.99204631,2687.1,2686.6,0.266]
[1740202129165,3.72162,2687.0,2686.6,0.266]
[1740202129376,0.13733875,2686.9,2686.7,0.8173]
[1740202129592,5.27056631,2687.1,2686.7,0.8173]
[1740202129904,0.13583139,2686.8,2686.7,0.8173]
[1740202130241,0.13583139,2686.8,2686.6,0.266]
[1740202130242,3.72203,2686.7,2686.6,0.266]
[1740202130549,3.85783423,2686.7,2686.6,0.266]
[1740202131203,0.13580423,2686.7,2686.6,0.266]
[1740202131369,3.72203,2686.7,2686.6,0.266]
[1740202131572,3.85783423,2686.7,2686.6,0.266]
[1740202131767,3.85783423,2686.7,2686.5,0.8173]
[1740202131958,3.85783423,2686.7,2686.6,0.266]
[1740202140597,0.13580423,2686.7,2686.6,0.266]
[1740202140809,3.72191,2686.8,2686.6,0.266]
[1740202141013,0.13580423,2686.7,2686.6,0.266]
[1740202141199,3.72191,2686.8,2686.6,0.266]
[1740202141517,3.85783423,2686.7,2686.6,0.266]
[1740202141702,0.13580423,2686.7,2686.6,0.266]
[1740202141911,0.13580423,2686.7,2686.6,1.095]
[1740202142074,3.72191,2686.8,2686.6,1.095]
[1740202142275,0.13580423,2686.7,2686.6,1.095]
[1740202142476,3.72174,2687.0,2686.6,1.095]
[1740202142793,3.72197,2686.8,2686.6,1.576735]
[1740202142997,7.44395,2686.8,2686.6,1.095]
[1740202143212,3.72197,2686.8,2686.6,1.095]
[1740202143419,0.13531524,2686.7,2686.6,1.095]
[1740202143574,7.44397,2686.8,2686.6,1.095]
[1740202143922,0.13531524,2686.7,2686.6,1.095]
[1740202144278,7.44395,2686.8,2686.6,1.095]
[1740202144478,3.85734524,2686.7,2686.6,1.095]
[1740202145612,3.85734524,2686.7,2686.3,4.33092083]
[1740202145613,3.72254,2686.4,2686.1,7.674]
[1740202145813,7.44507,2686.4,2686.2,1.3908383]
[1740202146115,3.72253,2686.4,2686.3,0.266]
[1740202153331,3.72253,2686.4,2686.2,1.1248383]
[1740202153499,3.72253,2686.4,2686.3,0.266]
[1740202155698,3.72232,2686.5,2686.3,0.266]
[1740202155903,7.44475,2686.5,2686.3,0.266]
[1740202156106,3.72245,2686.4,2686.3,0.266]
[1740202156426,3.72232,2686.5,2686.3,0.266]
[1740202156600,3.72232,2686.5,2686.3,1.99803886]
[1740202156919,3.85764295,2686.4,2686.3,1.99803886]
[1740202164225,3.85764295,2686.4,2686.3,2.78673886]
[1740202165831,0.13519295,2686.4,2686.3,9.14495035]
[1740202166023,8.99248631,2686.8,2686.5,0.7887]
[1740202166224,8.99248631,2686.8,2686.7,1.73203886]
[1740202166394,3.72217,2686.6,2686.5,2.52073886]
[1740202166728,3.72217,2686.6,2686.5,0.7887]
[1740202168551,3.72192,2686.8,2686.5,0.7887]
[1740202168747,3.72192,2686.8,2686.5,1.30178526]
[1740202170418,3.72168,2687.0,2686.5,0.51308526]
[1740202170649,3.72168,2687.0,2686.6,0.7887]
[1740202170951,7.44338,2687.0,2686.6,0.7887]
[1740202171148,3.72178,2686.9,2686.6,1.64830665]
[1740202171567,3.72147,2687.2,2686.7,4.47836]
[1740202171568,3.72139,2687.2,2686.7,4.47836]
[1740202171722,8.99146631,2687.6,2687.0,0.7564]
[1740202172054,3.72121,2687.3,2687.0,1.3064]
[1740202172623,0.13099808,2687.2,2687.0,1.3064]
[1740202172818,3.72121,2687.3,2687.0,1.3064]
[1740202173030,0.13099808,2687.1,2687.0,1.3064]
[1740202173251,3.72121,2687.3,2687.0,1.809223]
[1740202173415,0.13099808,2687.1,2687.0,1.809223]
[1740202173615,3.72108,2687.4,2687.0,1.809223]
[1740202173843,0.13099808,2687.1,2687.0,1.809223]
[1740202174044,3.72121,2687.3,2687.0,1.809223]
[1740202174319,0.13099808,2687.1,2687.0,1.809223]
[1740202174542,3.72121,2687.3,2687.0,1.809223]
[1740202174731,0.13099808,2687.1,2687.0,1.809223]
[1740202174926,3.72121,2687.3,2687.0,1.809223]
[1740202175126,0.13099808,2687.1,2687.0,1.809223]
[1740202175366,3.72121,2687.3,2687.0,1.259223]
[1740202175567,0.13099808,2687.1,2687.0,1.259223]
[1740202176384,3.72148,2687.1,2687.0,1.259223]
[1740202176697,3.85247808,2687.1,2687.0,0.7564]
[1740202178570,3.85247808,2687.1,2687.0,1.0224]
[1740202180390,0.13099808,2687.1,2687.0,1.0224]
[1740202180776,3.72101,2687.5,2687.0,1.0224]
[1740202181086,3.72122,2687.3,2687.0,1.0224]
[1740202181387,3.7212,2687.3,2687.0,1.0224]
[1740202181690,0.13099808,2687.2,2687.0,1.0224]
[1740202181886,3.72122,2687.3,2687.0,2.61473719]
[1740202182080,0.13099808,2687.1,2687.0,2.61473719]
[1740202182280,3.72105,2687.5,2687.0,2.61473719]
[1740202182476,0.13099808,2687.1,2687.0,2.61473719]
[1740202182681,3.72121,2687.3,2687.0,2.61473719]
[1740202182990,0.13099808,2687.1,2687.0,2.61473719]
[1740202183157,3.72121,2687.3,2687.0,2.61473719]
[1740202183358,3.72102,2687.5,2687.1,0.26147372]
[1740202183888,3.72113,2687.4,2687.1,0.26147372]
[1740202184096,3.72119,2687.4,2687.1,0.26147372]
[1740202184459,3.72121,2687.3,2687.1,0.26147372]
[1740202186975,0.13146043,2687.2,2687.1,0.26147372]
[1740202187363,3.72121,2687.3,2687.1,0.26147372]
[1740202187699,0.13146043,2687.2,2687.1,0.26147372]